fUSD/lending_fUSD_20260510
["ID","MTS","AMOUNT","RATE_DAILY","PERIOD"]
[421950746,1778365838000,-168.27,0.00017808,2]
[421950756,1778365838000,-1042.31810368,0.00020309,2]
[421950747,1778365838000,-196.0,0.0001858,2]
[421950751,1778365838000,-154.0,0.0002,2]
[421950750,1778365838000,-197.0,0.0001995,2]
[421950796,1778365838000,-504.57495687,0.00023368,2]
[421950749,1778365838000,-800.0,0.00019421,2]
[421950752,1778365838000,-207.0,0.0002,2]
[421950753,1778365838000,-156.0,0.0002,2]
[421950755,1778365838000,-9916.77899838,0.00020242,2]
[421950757,1778365838000,-5224.73076166,0.00020361,2]
[421950760,1778365838000,-154.0,0.00021,2]
[421950762,1778365838000,-156.0,0.00021,2]
[421950761,1778365838000,-207.0,0.00021,2]
[421950759,1778365838000,-230.18725859,0.000208,2]
[421950754,1778365838000,-500.0,0.00020242,2]
[421950802,1778365838000,-207.0,0.00024,2]
[421950777,1778365838000,-500.0,0.00022273,2]
[421950799,1778365838000,-166.66,0.00023792,30]
[421950856,1778365838000,-151.3,0.00025711,30]
[421950875,1778365838000,-156.9,0.00026455,30]
[421950877,1778365838000,-156.9,0.00026495,2]
[421950879,1778365838000,-156.9,0.00026535,7]
[421950881,1778365838000,-151.3,0.00026554,2]
[421950883,1778365838000,-156.97,0.00026575,30]
[421950866,1778365838000,-156.9,0.00026336,30]
[421950871,1778365838000,-156.9,0.00026376,2]
[421950864,1778365838000,-156.9,0.00026296,7]
[421950869,1778365838000,-151.3,0.00026343,30]
[421950886,1778365838000,-503.0,0.00026667,4]
[421950873,1778365838000,-156.9,0.00026416,7]
[421950890,1778365838000,-800.0,0.00026704,2]
[421950888,1778365838000,-803.15,0.00026699,2]
[421950902,1778365838000,-803.15,0.0002732,2]
[421950892,1778365838000,-151.3,0.00026765,7]
[421950896,1778365838000,-150.0,0.00026849,2]
[421950905,1778365838000,-151.36,0.00027397,7]
[421950907,1778365838000,-1500.0,0.00027397,2]
[421950900,1778365838000,-151.3,0.00027186,2]
[421950898,1778365838000,-151.3,0.00026975,30]
[421950909,1778365838000,-183.35,0.00027397,2]
[421950911,1778365838000,-3624.57,0.00027397,10]
[421950915,1778365838000,-2517.06,0.00027397,10]
[421950795,1778365838000,-166.66,0.0002333,30]
[421950913,1778365838000,-3020.47,0.00027397,10]
[421950919,1778365838000,-171271.7064189,0.00027464,2]
[421950862,1778365838000,-151.3,0.00026132,7]
[421950854,1778365838000,-1042.31810368,0.00025671,2]
[421950917,1778365838000,-46742.9994391,0.00027464,2]
[421950844,1778365838000,-151.3,0.000255,7]
[421950858,1778365838000,-151.3,0.00025922,2]
[421950805,1778365838000,-166.66,0.00024254,30]
[421950800,1778365838000,-419.44,0.00023832,2]
[421950797,1778365838000,-500.0,0.000236,2]
[421950798,1778365838000,-174.15,0.00023704,2]
[421950801,1778365838000,-5224.73076166,0.00023927,2]
[421950806,1778365838000,-800.0,0.00024277,2]
[421950808,1778365838000,-503.0,0.00024397,2]
[421950807,1778365838000,-503.0,0.00024397,2]
[421950810,1778365838000,-503.0,0.00024397,2]
[421950819,1778365838000,-151.3,0.00024658,2]
[421950813,1778365838000,-183.35,0.00024658,2]
[421950822,1778365838000,-163.76,0.00024748,2]
[421950816,1778365838000,-1000.0,0.00024658,2]
[421950804,1778365838000,-161.91,0.00024235,2]
[421950828,1778365838000,-803.15,0.00024837,2]
[421950850,1778365838000,-500.0,0.00025648,2]
[421950852,1778365838000,-500.0,0.00025648,2]
[421950842,1778365838000,-803.15,0.00025457,2]
[421950840,1778365838000,-151.3,0.0002529,2]
[421950860,1778365838000,-803.15,0.00026078,2]
[421950846,1778365838000,-503.0,0.00025532,3]
[421950837,1778365838000,-151.3,0.00025079,30]
[421950835,1778365838000,-226.0,0.00025,2]
[421950833,1778365838000,-14679.370609,0.00024933,2]
[421950831,1778365838000,-151.3,0.00024868,7]
[421950825,1778365838000,-2836.73,0.00024748,2]
[421950848,1778365838000,-500.0,0.00025648,2]
[421951002,1778365839000,-503.0,0.00032341,10]
[421951006,1778365839000,-183.63652446,0.00032566,51]
[421950994,1778365839000,-1000.0,0.000315,7]
[421950995,1778365839000,-322.01,0.00031691,120]
[421950990,1778365839000,-187.2016865,0.000313,2]
[421950988,1778365839000,-187.20168651,0.000313,2]
[421950986,1778365839000,-3539.0,0.00031274,2]
[421950983,1778365839000,-33147.836,0.00031174,2]
[421950998,1778365839000,-207.0,0.00031929,30]
[421950993,1778365839000,-316.91,0.00031304,120]
[421950972,1778365839000,-163.76,0.00030935,2]
[421951000,1778365839000,-570.89983122,0.00032,120]
[421950999,1778365839000,-156.0,0.00031929,30]
[421951004,1778365839000,-194.43258512,0.00032517,51]
[421951008,1778365839000,-150.0,0.00032636,2]
[421950997,1778365839000,-154.0,0.00031929,30]
[421951019,1778365839000,-570.89983122,0.00033,120]
[421950996,1778365839000,-804.11,0.00031749,2]
[421951023,1778365839000,-1100.74880009,0.00033582,20]
[421951014,1778365839000,-154.0,0.00032929,30]
[421951020,1778365839000,-14679.370609,0.00033346,2]
[421951027,1778365839000,-1149.71648099,0.00033582,20]
[421951018,1778365839000,-156.0,0.00032929,30]
[421950985,1778365839000,-503.0,0.00031206,9]
[421951010,1778365839000,-956.0,0.00032746,5]
[421950968,1778365839000,-207.0,0.00030929,30]
[421950948,1778365839000,-503.0,0.00028936,6]
[421950966,1778365839000,-154.0,0.00030929,30]
[421951012,1778365839000,-183.35,0.00032877,2]
[421950922,1778365839000,-5224.73076166,0.00027493,2]
[421950924,1778365839000,-14679.370609,0.00027737,2]
[421950926,1778365839000,-500.0,0.000278,7]
[421950928,1778365839000,-503.0,0.00027802,5]
[421950932,1778365839000,-150.0,0.00028192,2]
[421950930,1778365839000,-163.76,0.00027841,2]
[421950934,1778365839000,-161.91,0.00028235,2]
[421950936,1778365839000,-1268.0,0.00028274,2]
[421950939,1778365839000,-150.528,0.00028274,2]
[421950945,1778365839000,-322.01,0.0002881,120]
[421950941,1778365839000,-3539.0,0.00028274,2]
[421950943,1778365839000,-1042.31810368,0.00028352,2]
[421950950,1778365839000,-800.0,0.00029132,2]
[421950958,1778365839000,-503.0,0.00030071,7]
[421950954,1778365839000,-150.0,0.00029601,2]
[421950956,1778365839000,-504.02892683,0.0002965,5]
[421950952,1778365839000,-316.91,0.00029495,120]
[421950962,1778365839000,-316.91,0.00030399,120]
[421950960,1778365839000,-183.35,0.00030137,2]
[421950964,1778365839000,-14679.370609,0.00030542,2]
[421950976,1778365839000,-5224.73076166,0.0003106,2]
[421950974,1778365839000,-1042.31810368,0.00031034,2]
[421950979,1778365839000,-150.0,0.00031081,2]
[421950981,1778365839000,-500.0,0.00031173,2]
[421950970,1778365839000,-156.0,0.00030929,30]
[421951016,1778365839000,-207.0,0.00032929,30]
[421951022,1778365839000,-1093.50283262,0.00033582,20]
[421951025,1778365839000,-1025.64658677,0.00033582,20]
[421951054,1778365839000,-500.0,0.00035616,7]
[421951058,1778365839000,-500.0,0.00035616,7]
[421951056,1778365839000,-500.0,0.00035616,7]
[421951060,1778365839000,-500.0,0.00035616,7]
[421951057,1778365839000,-500.0,0.00035616,7]
[421951064,1778365839000,-500.0,0.00035616,7]
[421951059,1778365839000,-500.0,0.00035616,7]
[421951061,1778365839000,-500.0,0.00035616,7]
[421951063,1778365839000,-161.83771768,0.00035616,7]
[421951062,1778365839000,-500.0,0.00035616,7]
[421951066,1778365839000,-500.0,0.00035616,7]
[421951067,1778365839000,-500.0,0.00035616,7]
[421951065,1778365839000,-500.0,0.00035616,7]
[421951071,1778365839000,-500.0,0.00035616,7]
[421951076,1778365839000,-500.0,0.00035616,7]
[421951074,1778365839000,-500.0,0.00035616,7]
[421951070,1778365839000,-500.0,0.00035616,7]
[421951068,1778365839000,-500.0,0.00035616,7]
[421951075,1778365839000,-500.0,0.00035616,7]
[421951069,1778365839000,-500.0,0.00035616,7]
[421951072,1778365839000,-500.0,0.00035616,7]
[421951079,1778365839000,-500.0,0.00035616,7]
[421951078,1778365839000,-500.0,0.00035616,7]
[421951080,1778365839000,-500.0,0.00035616,7]
[421951026,1778365839000,-1026.15448541,0.00033582,20]
[421951055,1778365839000,-500.0,0.00035616,7]
[421951053,1778365839000,-500.0,0.00035616,7]
[421951077,1778365839000,-500.0,0.00035616,7]
[421951052,1778365839000,-500.0,0.00035616,7]
[421951050,1778365839000,-500.0,0.00035616,7]
[421951024,1778365839000,-1002.00423154,0.00033582,20]
[421951021,1778365839000,-503.0,0.00033475,11]
[421951029,1778365839000,-1318.20212386,0.00033582,20]
[421951028,1778365839000,-1128.30631162,0.00033582,20]
[421951081,1778365839000,-500.0,0.00035616,7]
[421951032,1778365839000,-154.0,0.00033929,30]
[421951031,1778365839000,-570.89983122,0.000339,120]
[421951033,1778365839000,-207.0,0.00033929,30]
[421951038,1778365839000,-153.324,0.00034321,38]
[421951035,1778365839000,-163.76,0.00034028,2]
[421951040,1778365839000,-503.0,0.0003461,12]
[421951039,1778365839000,-322.01,0.00034572,120]
[421951030,1778365839000,-1042.31810368,0.00033715,2]
[421951036,1778365839000,-150.0,0.00034267,2]
[421951048,1778365839000,-158.89749992,0.00035616,60]
[421951049,1778365839000,-500.0,0.00035616,7]
[421951034,1778365839000,-156.0,0.00033929,30]
[421951051,1778365839000,-500.0,0.00035616,7]
[421951047,1778365839000,-1500.0,0.000352,7]
[421951044,1778365839000,-156.0,0.00034929,30]
[421951042,1778365839000,-154.0,0.00034929,30]
[421951046,1778365839000,-240.59637461,0.00035002,62]
[421951043,1778365839000,-207.0,0.00034929,30]
[421951041,1778365839000,-5224.73076166,0.00034626,2]
[421951045,1778365839000,-570.89983122,0.00035,120]
[421951037,1778365839000,-3539.0,0.00034274,2]
[421951107,1778365840000,-500.0,0.00035616,7]
[421951105,1778365840000,-488.55513542,0.00035616,7]
[421951106,1778365840000,-11.44486458,0.00035616,7]
[421951111,1778365840000,-503.0,0.00035745,13]
[421951103,1778365840000,-500.0,0.00035616,7]
[421951109,1778365840000,-183.35,0.00035616,2]
[421951104,1778365840000,-500.0,0.00035616,7]
[421951110,1778365840000,-500.0,0.00035673,5]
[421951117,1778365840000,-4738.67166244,0.0003615,2]
[421951119,1778365840000,-1650.61375639,0.0003615,2]
[421951116,1778365840000,-570.89983122,0.00036,120]
[421951112,1778365840000,-154.0,0.00035929,30]
[421951115,1778365840000,-150.0,0.00035981,2]
[421951114,1778365840000,-156.0,0.00035929,30]
[421951102,1778365840000,-500.0,0.00035616,7]
[421951118,1778365840000,-4911.37788427,0.0003615,2]
[421951108,1778365840000,-230.25901728,0.00035616,2]
[421951101,1778365840000,-500.0,0.00035616,7]
[421951089,1778365840000,-500.0,0.00035616,7]
[421951100,1778365840000,-500.0,0.00035616,7]
[421951120,1778365840000,-324.74597164,0.0003615,2]
[421951083,1778365840000,-500.0,0.00035616,7]
[421951086,1778365840000,-456.5394592,0.00035616,7]
[421951085,1778365840000,-500.0,0.00035616,7]
[421951084,1778365840000,-500.0,0.00035616,7]
[421951090,1778365840000,-500.0,0.00035616,7]
[421951087,1778365840000,-500.0,0.00035616,7]
[421951088,1778365840000,-500.0,0.00035616,7]
[421951082,1778365840000,-500.0,0.00035616,7]
[421951091,1778365840000,-500.0,0.00035616,7]
[421951092,1778365840000,-500.0,0.00035616,7]
[421951093,1778365840000,-500.0,0.00035616,7]
[421951096,1778365840000,-500.0,0.00035616,7]
[421951095,1778365840000,-500.0,0.00035616,7]
[421951094,1778365840000,-500.0,0.00035616,7]
[421951098,1778365840000,-500.0,0.00035616,7]
[421951097,1778365840000,-500.0,0.00035616,7]
[421951099,1778365840000,-500.0,0.00035616,7]
[421951131,1778365840000,-441.26,0.00037493,2]
[421951113,1778365840000,-207.0,0.00035929,30]
[421951122,1778365840000,-441.26,0.00036284,2]
[421951152,1778365840000,-300.0,0.00037698,2]
[421951150,1778365840000,-1093.57565763,0.00037698,2]
[421951147,1778365840000,-483.58541473,0.00037698,2]
[421951156,1778365840000,-399.46100559,0.00037698,2]
[421951151,1778365840000,-492.17769921,0.00037698,2]
[421951153,1778365840000,-527.1999469,0.00037698,2]
[421951146,1778365840000,-300.0,0.00037698,2]
[421951154,1778365840000,-1065.80891604,0.00037698,2]
[421951148,1778365840000,-309.51003376,0.00037698,2]
[421951157,1778365840000,-725.31429466,0.00037698,2]
[421951158,1778365840000,-301.48155124,0.00037698,2]
[421951155,1778365840000,-892.47111794,0.00037698,2]
[421951159,1778365840000,-300.25804147,0.00037698,2]
[421951160,1778365840000,-480.55868044,0.00037698,2]
[421951161,1778365840000,-372.73919114,0.00037698,2]
[421951162,1778365840000,-877.77575637,0.00037698,2]
[421951127,1778365840000,-154.0,0.00036929,30]
[421951142,1778365840000,-1145.98254531,0.00037698,2]
[421951140,1778365840000,-251.37090332,0.00037652,7]
[421951149,1778365840000,-300.0,0.00037698,2]
[421951141,1778365840000,-251.37090332,0.00037694,7]
[421951121,1778365840000,-3053.96133426,0.0003615,2]
[421951128,1778365840000,-207.0,0.00036929,30]
[421951129,1778365840000,-156.0,0.00036929,30]
[421951126,1778365840000,-441.26,0.00036889,2]
[421951130,1778365840000,-163.76,0.00037122,2]
[421951132,1778365840000,-150.0,0.00037652,30]
[421951134,1778365840000,-150.0,0.00037652,7]
[421951123,1778365840000,-1042.31810368,0.00036396,2]
[421951124,1778365840000,-324.23730149,0.00036718,69]
[421951125,1778365840000,-503.0,0.0003688,15]
[421951136,1778365840000,-150.0,0.00037652,7]
[421951133,1778365840000,-150.0,0.00037652,7]
[421951145,1778365840000,-576.5741924,0.00037698,2]
[421951139,1778365840000,-150.74310605,0.00037652,7]
[421951144,1778365840000,-463.36822182,0.00037698,2]
[421951138,1778365840000,-150.0,0.00037652,7]
[421951137,1778365840000,-150.0,0.00037652,7]
[421951135,1778365840000,-150.0,0.00037652,7]
[421951143,1778365840000,-309.26886467,0.00037698,2]
[421951171,1778365841000,-310.57459591,0.00037698,2]
[421951164,1778365841000,-126.49824104,0.00037698,2]
[421951163,1778365841000,-790.17323,0.00037698,2]
[421951165,1778365841000,-343.62395792,0.00037698,2]
[421951167,1778365841000,-236.82225573,0.00037698,2]
[421951166,1778365841000,-1145.98254531,0.00037698,2]
[421951168,1778365841000,-72.44660894,0.00037698,2]
[421951170,1778365841000,-171.19268908,0.00037698,2]
[421951178,1778365841000,-300.0,0.00037698,2]
[421951173,1778365841000,-204.94877469,0.00037698,2]
[421951172,1778365841000,-258.41944713,0.00037698,2]
[421951177,1778365841000,-309.51003376,0.00037698,2]
[421951174,1778365841000,-576.5741924,0.00037698,2]
[421951169,1778365841000,-692.35526746,0.00037698,2]
[421951176,1778365841000,-483.58541473,0.00037698,2]
[421951175,1778365841000,-300.0,0.00037698,2]
[421951179,1778365841000,-1093.57565763,0.00037698,2]
[421951216,1778365842000,-251.37090332,0.00038244,7]
[421951210,1778365842000,-150.0,0.00038135,7]
[421951214,1778365842000,-251.37090332,0.00038201,7]
[421951213,1778365842000,-5224.73076166,0.00038192,2]
[421951209,1778365842000,-251.37090332,0.00038117,7]
[421951211,1778365842000,-251.37090332,0.00038159,7]
[421951208,1778365842000,-441.2840287,0.00038098,2]
[421951220,1778365842000,-500.0,0.00038329,2]
[421951212,1778365842000,-150.0,0.00038175,7]
[421951206,1778365842000,-150.0,0.00038054,7]
[421951215,1778365842000,-150.0,0.00038215,7]
[421951222,1778365842000,-150.0,0.00038349,7]
[421951225,1778365842000,-150.0,0.00038376,7]
[421951224,1778365842000,-251.37090332,0.0003837,7]
[421951226,1778365842000,-251.37090332,0.00038413,7]
[421951221,1778365842000,-150.0,0.00038349,7]
[421951228,1778365842000,-150.0,0.00038457,7]
[421951230,1778365842000,-150.0,0.00038524,7]
[421951231,1778365842000,-150.0,0.00038537,7]
[421951227,1778365842000,-251.37090332,0.00038455,7]
[421951229,1778365842000,-251.37090332,0.00038497,7]
[421951240,1778365842000,-250.0,0.000387,30]
[421951238,1778365842000,-150.0,0.00038698,7]
[421951241,1778365842000,-251.37090332,0.00038709,7]
[421951219,1778365842000,-251.37090332,0.00038328,7]
[421951223,1778365842000,-2269.2499,0.00038351,2]
[421951218,1778365842000,-150.0,0.00038296,7]
[421951235,1778365842000,-251.37090332,0.00038624,7]
[421951207,1778365842000,-251.37090332,0.00038075,7]
[421951180,1778365842000,-492.17769921,0.00037698,2]
[421951191,1778365842000,-251.37090332,0.00037737,7]
[421951190,1778365842000,-150.0,0.00037733,7]
[421951182,1778365842000,-356.09725877,0.00037698,2]
[421951181,1778365842000,-603.8329142,0.00037698,2]
[421951192,1778365842000,-251.37090332,0.00037779,7]
[421951184,1778365842000,-1065.80891604,0.00037698,2]
[421951186,1778365842000,-399.46100559,0.00037698,2]
[421951188,1778365842000,-301.48155124,0.00037698,2]
[421951185,1778365842000,-892.47111794,0.00037698,2]
[421951183,1778365842000,-527.1999469,0.00037698,2]
[421951187,1778365842000,-725.31429466,0.00037698,2]
[421951217,1778365842000,-251.37090332,0.00038286,7]
[421951189,1778365842000,-300.0,0.00037698,2]
[421951205,1778365842000,-251.37090332,0.00038032,7]
[421951204,1778365842000,-503.0,0.00038014,16]
[421951196,1778365842000,-150.0,0.00037826,7]
[421951193,1778365842000,-150.0,0.0003778,2]
[421951195,1778365842000,-251.37090332,0.00037821,7]
[421951197,1778365842000,-251.37090332,0.00037863,7]
[421951198,1778365842000,-150.0,0.00037893,7]
[421951200,1778365842000,-251.37090332,0.00037948,7]
[421951199,1778365842000,-251.37090332,0.00037906,7]
[421951202,1778365842000,-251.37090332,0.0003799,7]
[421951203,1778365842000,-150.0,0.00038001,7]
[421951201,1778365842000,-150.0,0.00037974,7]
[421951194,1778365842000,-150.0,0.00037813,7]
[421951236,1778365842000,-251.37090332,0.00038666,7]
[421951265,1778365842000,-251.37090332,0.00039047,7]
[421951233,1778365842000,-251.37090332,0.00038582,7]
[421951269,1778365842000,-150.0,0.000391,7]
[421951270,1778365842000,-2269.2499,0.00039118,2]
[421951271,1778365842000,-153.93,0.00039119,120]
[421951273,1778365842000,-251.37090332,0.00039131,7]
[421951283,1778365842000,-288.0,0.00039222,2]
[421951285,1778365842000,-251.37090332,0.00039258,7]
[421951274,1778365842000,-503.0,0.00039149,17]
[421951279,1778365842000,-159.42,0.00039219,120]
[421951275,1778365842000,-251.37090332,0.00039173,7]
[421951276,1778365842000,-150.0,0.00039181,7]
[421951272,1778365842000,-159.42,0.00039119,120]
[421951278,1778365842000,-153.93,0.00039219,120]
[421951266,1778365842000,-159.0,0.0003906,2]
[421951277,1778365842000,-251.37090332,0.00039216,7]
[421951286,1778365842000,-150.0,0.00039261,7]
[421951288,1778365842000,-400.0,0.00039289,2]
[421951290,1778365842000,-251.37090332,0.000393,7]
[421951289,1778365842000,-400.0,0.00039289,2]
[421951293,1778365842000,-159.0,0.00039309,120]
[421951296,1778365842000,-251.37090332,0.00039342,7]
[421951287,1778365842000,-400.0,0.00039289,2]
[421951291,1778365842000,-500.0,0.00039309,120]
[421951295,1778365842000,-150.0,0.00039342,7]
[421951292,1778365842000,-500.0,0.00039309,30]
[421951297,1778365842000,-251.37090332,0.00039385,7]
[421951232,1778365842000,-251.37090332,0.00038539,7]
[421951281,1778365842000,-259.0,0.00039222,2]
[421951294,1778365842000,-159.42,0.00039319,120]
[421951280,1778365842000,-150.0,0.00039221,7]
[421951268,1778365842000,-251.37090332,0.00039089,7]
[421951234,1778365842000,-150.0,0.00038617,7]
[421951262,1778365842000,-150.0,0.0003902,7]
[421951239,1778365842000,-150.0,0.000387,10]
[421951237,1778365842000,-150.0,0.00038698,7]
[421951242,1778365842000,-2269.2499,0.00038735,2]
[421951245,1778365842000,-700.0,0.0003877,2]
[421951243,1778365842000,-251.37090332,0.00038751,7]
[421951244,1778365842000,-700.0,0.0003877,2]
[421951247,1778365842000,-251.37090332,0.00038793,7]
[421951248,1778365842000,-2500.0,0.000388,2]
[421951251,1778365842000,-150.0,0.00038859,7]
[421951252,1778365842000,-150.0,0.00038872,7]
[421951250,1778365842000,-251.37090332,0.00038835,7]
[421951246,1778365842000,-150.0,0.00038778,7]
[421951255,1778365842000,-251.37090332,0.0003892,7]
[421951253,1778365842000,-251.37090332,0.00038878,7]
[421951249,1778365842000,-343.43625345,0.00038819,84]
[421951254,1778365842000,-2000.0,0.000389,7]
[421951259,1778365842000,-1324.88,0.00039,120]
[421951258,1778365842000,-251.37090332,0.00038962,7]
[421951257,1778365842000,-14679.370609,0.00038954,2]
[421951256,1778365842000,-150.0,0.00038939,7]
[421951264,1778365842000,-150.0,0.00039047,7]
[421951261,1778365842000,-251.37090332,0.00039004,7]
[421951263,1778365842000,-150.0,0.00039047,7]
[421951260,1778365842000,-1324.88,0.00039,60]
[421951267,1778365842000,-1042.31810368,0.00039077,2]
[421951338,1778365843000,-251.37090332,0.00039976,7]
[421951326,1778365843000,-150.0,0.00039744,7]
[421951332,1778365843000,-2269.2499,0.00039885,2]
[421951342,1778365843000,-159.42,0.00040019,120]
[421951344,1778365843000,-150.0,0.00040066,7]
[421951333,1778365843000,-251.37090332,0.00039892,7]
[421951329,1778365843000,-159.42,0.00039819,120]
[421951330,1778365843000,-150.0,0.00039824,7]
[421951331,1778365843000,-251.37090332,0.00039849,7]
[421951334,1778365843000,-150.0,0.00039905,7]
[421951348,1778365843000,-159.42,0.00040119,120]
[421951335,1778365843000,-150.0,0.00039918,7]
[421951346,1778365843000,-251.37090332,0.00040103,7]
[421951359,1778365843000,-150.0,0.00040267,7]
[421951345,1778365843000,-150.0,0.00040092,7]
[421951339,1778365843000,-150.0,0.00039985,7]
[421951347,1778365843000,-622.35,0.00040115,2]
[421951343,1778365843000,-251.37090332,0.00040061,7]
[421951349,1778365843000,-600.0,0.0004013,21]
[421951340,1778365843000,-186.0,0.0004,120]
[421951351,1778365843000,-251.37090332,0.00040145,7]
[421951350,1778365843000,-1300.0,0.0004013,21]
[421951360,1778365843000,-2269.2499,0.00040269,2]
[421951352,1778365843000,-150.0,0.00040146,7]
[421951358,1778365843000,-251.37090332,0.0004023,7]
[421951353,1778365843000,-251.37090332,0.00040188,7]
[421951328,1778365843000,-251.37090332,0.00039807,7]
[421951341,1778365843000,-251.37090332,0.00040019,7]
[421951337,1778365843000,-251.37090332,0.00039934,7]
[421951302,1778365843000,-251.37090332,0.00039469,7]
[421951327,1778365843000,-251.37090332,0.00039765,7]
[421951298,1778365843000,-150.0,0.00039395,7]
[421951357,1778365843000,-150.0,0.00040227,7]
[421951311,1778365843000,-1127.0,0.000396,7]
[421951310,1778365843000,-251.37090332,0.00039596,7]
[421951299,1778365843000,-159.42,0.00039419,120]
[421951301,1778365843000,-251.37090332,0.00039427,7]
[421951303,1778365843000,-2269.2499,0.00039502,2]
[421951304,1778365843000,-150.0,0.00039502,7]
[421951305,1778365843000,-251.37090332,0.00039511,7]
[421951308,1778365843000,-150.0,0.0003957,7]
[421951307,1778365843000,-251.37090332,0.00039554,7]
[421951309,1778365843000,-150.0,0.00039583,7]
[421951306,1778365843000,-159.42,0.00039519,120]
[421951316,1778365843000,-251.37090332,0.00039638,7]
[421951312,1778365843000,-213.94478459,0.000396,30]
[421951315,1778365843000,-159.42,0.00039619,120]
[421951314,1778365843000,-213.94478457,0.000396,30]
[421951317,1778365843000,-150.0,0.00039663,7]
[421951313,1778365843000,-213.94478457,0.000396,30]
[421951323,1778365843000,-150.0,0.00039744,7]
[421951321,1778365843000,-159.42,0.00039719,120]
[421951324,1778365843000,-150.0,0.00039744,7]
[421951320,1778365843000,-1854.99985667,0.00039685,2]
[421951325,1778365843000,-150.0,0.00039744,7]
[421951318,1778365843000,-150.0,0.00039669,2]
[421951319,1778365843000,-251.37090332,0.0003968,7]
[421951322,1778365843000,-251.37090332,0.00039723,7]
[421951336,1778365843000,-159.42,0.00039919,120]
[421951355,1778365843000,-2355.34,0.000402,60]
[421951300,1778365843000,-150.0,0.00039422,7]
[421951361,1778365843000,-251.37090332,0.00040272,7]
[421951400,1778365843000,-1000.0,0.000407,7]
[421951408,1778365843000,-150.0,0.0004079,7]
[421951409,1778365843000,-251.37090332,0.00040821,7]
[421951402,1778365843000,-150.0,0.00040709,7]
[421951404,1778365843000,-251.37090332,0.00040737,7]
[421951407,1778365843000,-150.0,0.0004079,7]
[421951406,1778365843000,-251.37090332,0.00040779,7]
[421951405,1778365843000,-3660.01,0.0004075,120]
[421951410,1778365843000,-251.37090332,0.00040864,7]
[421951413,1778365843000,-387.36474066,0.00040919,110]
[421951420,1778365843000,-400.0,0.00040997,2]
[421951411,1778365843000,-150.0,0.0004087,7]
[421951416,1778365843000,-600.0,0.00040952,21]
[421951418,1778365843000,-150.0,0.00040964,7]
[421951415,1778365843000,-150.0,0.00040951,7]
[421951419,1778365843000,-251.37090332,0.0004099,7]
[421951412,1778365843000,-251.37090332,0.00040906,7]
[421951414,1778365843000,-251.37090332,0.00040948,7]
[421951417,1778365843000,-1300.0,0.00040952,21]
[421951422,1778365843000,-150.0,0.00041031,7]
[421951421,1778365843000,-400.0,0.00040997,2]
[421951423,1778365843000,-251.37090332,0.00041033,7]
[421951429,1778365843000,-200.57141061,0.00041095,2]
[421951424,1778365843000,-659.6,0.00041041,120]
[421951428,1778365843000,-500.0,0.00041095,2]
[421951426,1778365843000,-500.0,0.00041095,120]
[421951427,1778365843000,-500.0,0.00041095,2]
[421951398,1778365843000,-251.37090332,0.00040695,7]
[421951396,1778365843000,-251.37090332,0.00040652,7]
[421951425,1778365843000,-251.37090332,0.00041075,7]
[421951392,1778365843000,-150.0,0.00040615,7]
[421951394,1778365843000,-150.0,0.00040629,7]
[421951356,1778365843000,-159.42,0.00040219,120]